[Event "ESP-ch Rapid 2018"]
[Site "Linares"]
[Date "2018.08.19"]
[Round "8"]
[White "Beltran De Heredia E, Miguel"]
[Black "Izquierdo Puertas, Carlos"]
[Result "1-0"]
[ECO "B35"]
[WhiteElo "2229"]
[BlackElo "2010"]
[Annotator "NA"]
[PlyCount "101"]
[EventDate "2018.08.19"]
[EventType "team-tourn"]
[EventCountry "ESP"]
[SourceTitle "playchess.com"]
[Source "ChessBase"]
[SourceQuality "1"]
[TimeControl "900+5"]

1. e4 {[%emt 0:00:00]} c5 {[%emt 0:00:00]} 2. Nf3 {[%emt 0:00:00]} Nc6 {[%emt 0:00:00]} 3. Nc3 {[%emt 0:00:00]} g6 {[%emt 0:00:01]} 4. d4 {[%emt 0:00:02]} cxd4 {[%emt 0:00:01]} 5. Nxd4 {[%emt 0:00:01]} Bg7 {[%emt 0:00:01]} 6. Be3 {[%emt 0:00:02]} Nf6 {[%emt 0:00:01]} 7. Bc4 {[%emt 0:00:02]} O-O {[%emt 0:00:01]} 8. Bb3 {[%emt 0:00:02]} d6 {[%emt 0:00:09]} 9. f3 {[%emt 0:00:03]} Nxd4 {[%emt 0:00:42]} 10. Bxd4 {[%emt 0:00:03]} Be6 {[%emt 0:00:02]} 11. Nd5 {[%emt 0:01:51]} Nxd5 {[%emt 0:00:56]} 12. exd5 {[%emt 0:00:08]} Qa5+ {[%emt 0:00:29]} 13. c3 {[%emt 0:00:24]} Bd7 {[%emt 0:01:50]} 14. Bxg7 {[%emt 0:00:03]} Kxg7 {[%emt 0:00:02]} 15. Qd4+ {[%emt 0:00:11]} Kg8 {[%emt 0:00:12]} 16. O-O-O {[%emt 0:01:08]} Rac8 {[%emt 0:00:24]} 17. g4 {[%emt 0:00:38]} b5 {[%emt 0:00:04]} 18. Kb1 {[%emt 0:00:09]} Rb8 {[%emt 0:01:45]} 19. h4 {[%emt 0:00:24]} b4 {[%emt 0:00:07]} 20. h5 {[%emt 0:00:49]} g5 {[%emt 0:00:56]} 21. c4 {[%emt 0:00:13]} Ba4 {[%emt 0:00:40]} 22. Qe3 {[%emt 0:00:40]} f6 {[%emt 0:00:36]} 23. Qxe7 {[%emt 0:00:31]} Bxb3 {[%emt 0:00:15]} 24. axb3 {[%emt 0:00:01]} Qc5 {[%emt 0:00:42]} 25. Rhe1 {[%emt 0:00:50]} Rf7 {[%emt 0:00:09]} 26. Qe6 {[%emt 0:00:32]} a5 {[%emt 0:00:10]} 27. Rd2 {[%emt 0:00:32]} a4 {[%emt 0:00:10]} 28. bxa4 {[%emt 0:00:45]} b3 {[%emt 0:00:02]} 29. Rde2 {[%emt 0:00:17]} Qxc4 {[%emt 0:01:31]} 30. Qxd6 {[%emt 0:00:15]} Qd3+ {[%emt 0:00:35]} 31. Ka1 {[%emt 0:00:34]} Ra8 {[%emt 0:01:06]} 32. Re8+ {[%emt 0:01:02]} Rxe8 {[%emt 0:00:01]} 33. Rxe8+ {[%emt 0:00:12]} Kg7 {[%emt 0:00:00]} 34. Re1 {[%emt 0:00:51]} Qd2 {[%emt 0:01:05]} 35. h6+ {[%emt 0:01:37]} Kg6 {[%emt 0:00:35]} 36. Qe6 {[%emt 0:00:15]} Qc2 {[%emt 0:01:16]} 37. d6 {[%emt 0:00:34]} Ra7 {[%emt 0:00:35]} 38. Qe4+ {[%emt 0:00:22]} Qxe4 {[%emt 0:00:53]} 39. Rxe4 {[%emt 0:00:02]} f5 {[%emt 0:00:02]} 40. Rd4 {[%emt 0:00:19]} Rd7 {[%emt 0:00:07]} 41. a5 {[%emt 0:00:05]} fxg4 {[%emt 0:00:03]} 42. fxg4 {[%emt 0:00:03]} Kf6 {[%emt 0:00:03]} 43. Kb1 Ke5 44. Rd1 {[%emt 0:00:19]} Rxd6 {[%emt 0:00:05]} 45. Rxd6 {[%emt 0:00:09]} Kxd6 {[%emt 0:00:01]} 46. Kc1 {[%emt 0:00:01]} Kc5 {[%emt 0:00:03]} 47. Kd2 {[%emt 0:00:01]} Kb5 {[%emt 0:00:00]} 48. Kc3 {[%emt 0:00:04]} Kxa5 {[%emt 0:00:01]} 49. Kxb3 {[%emt 0:00:01]} Kb5 {[%emt 0:00:01]} 50. Kc3 {[%emt 0:00:00]} Kc5 {[%emt 0:00:01]} 51. b4+ {[%emt 0:00:05]} 1-0

[Event "ESP-ch Rapid 2018"]
[Site "Linares"]
[Date "2018.08.19"]
[Round "8"]
[White "Sanchez Jimenez, Juan Carlos"]
[Black "Perdomo Araujo, Angel Eduardo"]
[Result "0-1"]
[ECO "D93"]
[WhiteElo "2228"]
[BlackElo "2100"]
[Annotator "NA"]
[PlyCount "33"]
[EventDate "2018.08.19"]
[EventType "team-tourn"]
[EventCountry "ESP"]
[SourceTitle "playchess.com"]
[Source "ChessBase"]
[SourceQuality "1"]
[TimeControl "900+5"]

1. d4 {[%emt 0:00:00]} Nf6 {[%emt 0:00:00]} 2. c4 {[%emt 0:00:00]} g6 {[%emt 0:00:00]} 3. Nc3 {[%emt 0:00:00]} d5 {[%emt 0:00:00]} 4. Nf3 {[%emt 0:00:01]} Bg7 {[%emt 0:00:00]} 5. Bf4 {[%emt 0:00:02]} O-O {[%emt 0:00:00]} 6. e3 {[%emt 0:00:01]} dxc4 {[%emt 0:00:08]} 7. Bxc4 {[%emt 0:00:02]} c6 {[%emt 0:00:01]} 8. O-O {[%emt 0:00:14]} Bg4 {[%emt 0:00:01]} 9. Be2 {[%emt 0:01:38]} Nbd7 {[%emt 0:00:03]} 10. Qb3 {[%emt 0:01:12]} Qb6 {[%emt 0:00:01]} 11. Qxb6 {[%emt 0:00:20]} axb6 {[%emt 0:00:07]} 12. h3 {[%emt 0:00:30]} Bxf3 {[%emt 0:00:35]} 13. Bxf3 {[%emt 0:00:28]} b5 {[%emt 0:00:01]} 14. a3 {[%emt 0:02:48]} Ra7 {[%emt 0:00:07]} 15. Rac1 {[%emt 0:00:35]} Re8 {[%emt 0:00:06]} 16. Rc2 {[%emt 0:00:13]} e5 {[%emt 0:00:03]} 17. dxe5 {[%emt 0:00:06]} 0-1

[Event "ESP-ch Rapid 2018"]
[Site "Linares"]
[Date "2018.08.19"]
[Round "8"]
[White "Alvarez Serrano, Carlos"]
[Black "Collado Barbas, Laura"]
[Result "0-1"]
[ECO "D02"]
[WhiteElo "2225"]
[BlackElo "2095"]
[Annotator "NA"]
[PlyCount "46"]
[EventDate "2018.08.19"]
[EventType "team-tourn"]
[EventCountry "ESP"]
[SourceTitle "playchess.com"]
[Source "ChessBase"]
[SourceQuality "1"]
[TimeControl "900+5"]

1. d4 {[%emt 0:00:00]} d5 {[%emt 0:00:00]} 2. Nf3 {[%emt 0:00:00]} c6 {[%emt 0:00:07]} 3. c4 {[%emt 0:00:01]} e6 {[%emt 0:00:01]} 4. e3 {[%emt 0:00:06]} f5 {[%emt 0:00:52]} 5. b3 {[%emt 0:00:03]} Bb4+ {[%emt 0:00:17]} 6. Bd2 {[%emt 0:00:06]} Bd6 {[%emt 0:00:05]} 7. Bc3 {[%emt 0:00:29]} Nh6 {[%emt 0:00:11]} 8. Bd3 {[%emt 0:00:11]} O-O {[%emt 0:00:07]} 9. Ne5 {[%emt 0:00:05]} Qg5 {[%emt 0:00:46]} 10. Qf3 {[%emt 0:00:47]} Nd7 {[%emt 0:00:53]} 11. h4 {[%emt 0:00:02]} Qf6 {[%emt 0:00:04]} 12. Qg3 {[%emt 0:00:45]} f4 {[%emt 0:00:31]} 13. exf4 {[%emt 0:00:05]} Qxf4 {[%emt 0:00:11]} 14. Qxf4 {[%emt 0:00:14]} Rxf4 {[%emt 0:00:03]} 15. g3 {[%emt 0:00:02]} Rf8 {[%emt 0:02:03]} 16. Nxd7 {[%emt 0:00:05]} Bxd7 {[%emt 0:00:02]} 17. c5 {[%emt 0:00:01]} Bc7 {[%emt 0:00:07]} 18. f4 {[%emt 0:00:01]} b6 {[%emt 0:00:27]} 19. b4 {[%emt 0:00:04]} a5 {[%emt 0:00:04]} 20. Nd2 {[%emt 0:00:54]} axb4 {[%emt 0:00:04]} 21. Bxb4 {[%emt 0:00:02]} bxc5 {[%emt 0:00:05]} 22. Bxc5 {[%emt 0:00:01]} Rfb8 {[%emt 0:00:01]} 23. Nb3 {[%emt 0:00:14]} Rxb3 {[%emt 0:00:07]} 0-1

[Event "ESP-ch Rapid 2018"]
[Site "Linares"]
[Date "2018.08.19"]
[Round "8"]
[White "Vinuela Diaz, Saul"]
[Black "Hernandez Perez, Juan Carlos"]
[Result "1-0"]
[ECO "E09"]
[WhiteElo "2216"]
[BlackElo "1946"]
[Annotator "NA"]
[PlyCount "99"]
[EventDate "2018.08.19"]
[EventType "team-tourn"]
[EventCountry "ESP"]
[SourceTitle "playchess.com"]
[Source "ChessBase"]
[SourceQuality "1"]
[TimeControl "900+5"]

1. Nf3 {[%emt 0:00:00]} Nf6 {[%emt 0:00:00]} 2. c4 {[%emt 0:00:00]} e6 {[%emt 0:00:00]} 3. d4 {[%emt 0:00:00]} d5 {[%emt 0:00:02]} 4. g3 {[%emt 0:00:01]} Be7 {[%emt 0:00:02]} 5. Bg2 {[%emt 0:00:02]} O-O {[%emt 0:00:03]} 6. O-O {[%emt 0:00:02]} Nbd7 {[%emt 0:00:38]} 7. Qc2 {[%emt 0:00:24]} c6 {[%emt 0:00:50]} 8. Nbd2 {[%emt 0:00:05]} Nb6 {[%emt 0:00:10]} 9. b3 {[%emt 0:00:17]} a5 {[%emt 0:00:59]} 10. e4 {[%emt 0:00:19]} dxe4 {[%emt 0:01:00]} 11. Nxe4 {[%emt 0:00:02]} Nxe4 {[%emt 0:00:18]} 12. Qxe4 {[%emt 0:00:02]} Bf6 {[%emt 0:00:11]} 13. Bf4 {[%emt 0:00:26]} a4 {[%emt 0:00:15]} 14. Rab1 {[%emt 0:00:43]} Nd7 {[%emt 0:00:51]} 15. Qc2 {[%emt 0:00:35]} axb3 {[%emt 0:00:21]} 16. axb3 {[%emt 0:00:01]} Qb6 {[%emt 0:00:37]} 17. Rfd1 {[%emt 0:00:12]} Re8 {[%emt 0:01:12]} 18. c5 {[%emt 0:00:28]} Qb4 {[%emt 0:00:49]} 19. Bd2 {[%emt 0:00:37]} Qa3 {[%emt 0:00:32]} 20. Bc3 {[%emt 0:00:29]} Qa7 {[%emt 0:01:02]} 21. b4 {[%emt 0:00:25]} b6 {[%emt 0:00:58]} 22. b5 {[%emt 0:00:38]} bxc5 {[%emt 0:01:07]} 23. bxc6 {[%emt 0:00:03]} Nb6 {[%emt 0:00:19]} 24. dxc5 {[%emt 0:00:32]} Nd5 {[%emt 0:00:13]} 25. Bxf6 {[%emt 0:00:02]} Nxf6 {[%emt 0:00:07]} 26. Nd4 {[%emt 0:00:42]} Ba6 {[%emt 0:01:23]} 27. Rb6 {[%emt 0:00:54]} Rab8 {[%emt 0:00:52]} 28. Rdb1 {[%emt 0:01:04]} Rec8 {[%emt 0:00:26]} 29. Qa4 {[%emt 0:00:29]} Ra8 {[%emt 0:00:09]} 30. c7 {[%emt 0:00:28]} Nd5 {[%emt 0:00:01]} 31. Bxd5 {[%emt 0:01:17]} exd5 {[%emt 0:00:02]} 32. Rxa6 {[%emt 0:01:55]} Qxa6 {[%emt 0:00:08]} 33. Qxa6 {[%emt 0:00:01]} Rxa6 {[%emt 0:00:01]} 34. Rb8 {[%emt 0:00:01]} Ra8 {[%emt 0:00:02]} 35. Rxa8 {[%emt 0:00:01]} Rxa8 {[%emt 0:00:01]} 36. Nc6 {[%emt 0:00:01]} Kf8 {[%emt 0:01:27]} 37. Na7 {[%emt 0:00:02]} d4 {[%emt 0:00:02]} 38. c8=Q+ {[%emt 0:00:06]} Rxc8 {[%emt 0:00:01]} 39. Nxc8 {[%emt 0:00:01]} Ke8 {[%emt 0:00:02]} 40. Nb6 {[%emt 0:00:06]} Kd8 {[%emt 0:00:03]} 41. Kf1 {[%emt 0:00:03]} Kc7 {[%emt 0:00:01]} 42. Ke2 {[%emt 0:00:03]} Kc6 {[%emt 0:00:01]} 43. Na4 {[%emt 0:00:01]} Kd5 {[%emt 0:00:02]} 44. Kd3 {[%emt 0:00:02]} f5 {[%emt 0:00:04]} 45. h4 {[%emt 0:00:35]} g6 {[%emt 0:00:06]} 46. f3 {[%emt 0:00:05]} h6 {[%emt 0:00:02]} 47. f4 {[%emt 0:00:02]} h5 {[%emt 0:00:06]} 48. c6 {[%emt 0:00:02]} Kxc6 {[%emt 0:00:02]} 49. Kxd4 {[%emt 0:00:01]} Kd6 {[%emt 0:00:02]} 50. Nc5 {[%emt 0:00:03] Kd5+ Ke4+} 1-0

[Event "ESP-ch Rapid 2018"]
[Site "Linares"]
[Date "2018.08.19"]
[Round "8"]
[White "Fernandez De Bobadilla, Gabriel"]
[Black "Fernandez Diaz, Ignacio"]
[Result "1-0"]
[ECO "A80"]
[WhiteElo "2175"]
[BlackElo "2071"]
[Annotator "NA"]
[PlyCount "59"]
[EventDate "2018.08.19"]
[EventType "team-tourn"]
[EventCountry "ESP"]
[SourceTitle "playchess.com"]
[Source "ChessBase"]
[SourceQuality "1"]
[TimeControl "900+5"]

1. d4 {[%emt 0:00:00]} f5 {[%emt 0:00:00]} 2. Bg5 {[%emt 0:00:04]} c6 {[%emt 0:00:22]} 3. e3 {[%emt 0:01:01]} Qb6 {[%emt 0:00:07]} 4. Nd2 {[%emt 0:00:21]} d5 {[%emt 0:00:39]} 5. Rb1 {[%emt 0:00:17]} Nd7 {[%emt 0:00:26]} 6. Bd3 {[%emt 0:00:06]} e6 {[%emt 0:00:02]} 7. Qh5+ {[%emt 0:00:22]} g6 {[%emt 0:00:15]} 8. Qe2 {[%emt 0:00:03]} Ngf6 {[%emt 0:00:21]} 9. h4 {[%emt 0:00:11]} h6 {[%emt 0:00:24]} 10. Bf4 {[%emt 0:00:07]} Bg7 {[%emt 0:00:04]} 11. Ngf3 {[%emt 0:00:29]} Ne4 {[%emt 0:00:29]} 12. c3 {[%emt 0:03:31]} Qd8 {[%emt 0:00:19]} 13. Bxe4 {[%emt 0:01:36]} fxe4 {[%emt 0:01:11]} 14. Ne5 {[%emt 0:00:19]} Bxe5 {[%emt 0:00:47]} 15. Bxe5 {[%emt 0:00:27]} Nxe5 {[%emt 0:00:03]} 16. dxe5 {[%emt 0:00:02]} Qc7 {[%emt 0:00:34]} 17. Qg4 {[%emt 0:00:07]} Qf7 {[%emt 0:00:04]} 18. f4 {[%emt 0:02:15]} exf3 {[%emt 0:01:55]} 19. O-O {[%emt 0:00:17]} Bd7 {[%emt 0:02:03]} 20. Rxf3 {[%emt 0:00:09]} Qg7 {[%emt 0:00:10]} 21. Rf6 {[%emt 0:00:03]} O-O-O {[%emt 0:01:08]} 22. Rbf1 {[%emt 0:00:22]} Rdf8 {[%emt 0:01:26]} 23. Qd4 {[%emt 0:00:26]} Kb8 {[%emt 0:00:15]} 24. Qf4 {[%emt 0:00:07]} Rd8 {[%emt 0:00:42]} 25. Rf7 {[%emt 0:00:04]} Qg8 {[%emt 0:00:02]} 26. Nb3 {[%emt 0:00:40]} g5 {[%emt 0:00:17]} 27. Qb4 {[%emt 0:00:30]} Bc8 {[%emt 0:00:17]} 28. Na5 {[%emt 0:00:15]} Ka8 {[%emt 0:01:32]} 29. Nxb7 {[%emt 0:00:52]} Rh7 {[%emt 0:00:09]} 30. Nxd8 {[%emt 0:00:05]} 1-0

[Event "ESP-ch Rapid 2018"]
[Site "Linares"]
[Date "2018.08.19"]
[Round "8"]
[White "Salvador Lopez, Daniel"]
[Black "Domingo Nunez, Alejandro"]
[Result "0-1"]
[ECO "A45"]
[WhiteElo "2162"]
[BlackElo "2373"]
[Annotator "NA"]
[PlyCount "90"]
[EventDate "2018.08.19"]
[EventType "team-tourn"]
[EventCountry "ESP"]
[SourceTitle "playchess.com"]
[Source "ChessBase"]
[SourceQuality "1"]
[TimeControl "900+5"]

1. d4 {[%emt 0:00:00]} Nf6 {[%emt 0:00:00]} 2. Bg5 {[%emt 0:00:00]} c5 {[%emt 0:00:12]} 3. d5 {[%emt 0:00:01]} Qb6 {[%emt 0:00:00]} 4. Nc3 {[%emt 0:00:03]} Qxb2 {[%emt 0:00:21]} 5. Bd2 {[%emt 0:00:01]} Qb6 {[%emt 0:00:09]} 6. e4 {[%emt 0:00:02]} d6 {[%emt 0:00:01]} 7. f4 {[%emt 0:00:03]} Nfd7 {[%emt 0:00:11]} 8. Nf3 {[%emt 0:00:31]} Qd8 {[%emt 0:00:53]} 9. e5 {[%emt 0:00:20]} Nb6 {[%emt 0:00:11]} 10. Bb5+ {[%emt 0:00:15]} Bd7 {[%emt 0:00:45]} 11. e6 {[%emt 0:00:16]} Bxb5 {[%emt 0:00:23]} 12. exf7+ Kd7 13. Nxb5 {[%emt 0:00:30]} Nxd5 {[%emt 0:00:03]} 14. c4 {[%emt 0:00:46]} Nf6 {[%emt 0:00:01]} 15. Bc3 {[%emt 0:00:32]} Kc8 {[%emt 0:00:00]} 16. O-O {[%emt 0:00:17]} a6 {[%emt 0:00:04]} 17. Bxf6 {[%emt 0:00:38]} gxf6 {[%emt 0:00:34]} 18. Nc3 {[%emt 0:00:17]} Nc6 {[%emt 0:00:23]} 19. Rb1 {[%emt 0:00:08]} Rb8 {[%emt 0:03:42]} 20. Nd5 {[%emt 0:01:00]} b5 {[%emt 0:00:15]} 21. cxb5 {[%emt 0:00:37]} axb5 {[%emt 0:00:04]} 22. a4 {[%emt 0:00:01]} b4 {[%emt 0:00:05]} 23. Qd3 {[%emt 0:00:18]} e6 {[%emt 0:00:42]} 24. Ne3 {[%emt 0:00:23]} Bh6 {[%emt 0:00:28]} 25. g3 {[%emt 0:00:59]} Qe7 {[%emt 0:02:07]} 26. Rfe1 {[%emt 0:00:29]} Qd7 {[%emt 0:00:19]} 27. Red1 {[%emt 0:01:07]} Kc7 {[%emt 0:00:18]} 28. Rbc1 {[%emt 0:01:15]} Qe7 {[%emt 0:01:20]} 29. Nh4 {[%emt 0:01:16]} Bf8 {[%emt 0:02:56]} 30. Nhf5 {[%emt 0:00:55]} Qd8 {[%emt 0:00:04]} 31. Nh4 {[%emt 0:01:15]} f5 {[%emt 0:00:06]} 32. Nhxf5 {[%emt 0:00:57]} exf5 {[%emt 0:00:01]} 33. Nd5+ {[%emt 0:00:01]} Kc8 {[%emt 0:00:00]} 34. Qxf5+ {[%emt 0:00:08]} Kb7 {[%emt 0:00:08]} 35. Qd3 {[%emt 0:00:30]} Ka7 {[%emt 0:00:01]} 36. Re1 {[%emt 0:00:23]} Bg7 {[%emt 0:00:14]} 37. Re8 {[%emt 0:00:27]} Qd7 {[%emt 0:00:54]} 38. Rxh8 {[%emt 0:00:02]} Bxh8 {[%emt 0:00:01]} 39. Qxh7 {[%emt 0:00:11]} Bd4+ {[%emt 0:00:00]} 40. Kg2 {[%emt 0:00:09]} Rb7 {[%emt 0:00:04]} 41. Qe4 {[%emt 0:00:53]} Qxf7 {[%emt 0:00:03]} 42. a5 {[%emt 0:00:03]} Ne7 {[%emt 0:00:14]} 43. a6 {[%emt 0:00:08]} Kxa6 {[%emt 0:00:06]} 44. Qd3+ {[%emt 0:00:04]} Ka7 {[%emt 0:00:08]} 45. Qc4 {[%emt 0:00:05]} Qxd5+ {[%emt 0:00:01]} 0-1

[Event "ESP-ch Rapid 2018"]
[Site "Linares"]
[Date "2018.08.19"]
[Round "8"]
[White "Cuevas Fernandez, Jose Alberto"]
[Black "Ordonez Torres, Jesus"]
[Result "0-1"]
[ECO "E90"]
[WhiteElo "2147"]
[BlackElo "1989"]
[Annotator "NA"]
[PlyCount "64"]
[EventDate "2018.08.19"]
[EventType "team-tourn"]
[EventCountry "ESP"]
[SourceTitle "playchess.com"]
[Source "ChessBase"]
[SourceQuality "1"]
[TimeControl "900+5"]

1. d4 {[%emt 0:00:00]} Nf6 {[%emt 0:00:00]} 2. c4 {[%emt 0:00:00]} g6 {[%emt 0:00:00]} 3. Nc3 {[%emt 0:00:00]} Bg7 {[%emt 0:00:00]} 4. e4 {[%emt 0:00:00]} d6 {[%emt 0:00:01]} 5. Nf3 {[%emt 0:00:02]} O-O {[%emt 0:00:04]} 6. h3 {[%emt 0:00:01]} e5 {[%emt 0:00:20]} 7. d5 {[%emt 0:00:02]} a5 {[%emt 0:00:15]} 8. g4 {[%emt 0:00:03]} Na6 {[%emt 0:00:09]} 9. Be3 {[%emt 0:00:03]} Nd7 {[%emt 0:00:16]} 10. Rg1 {[%emt 0:00:02]} Ndc5 {[%emt 0:00:39]} 11. Qd2 {[%emt 0:00:04]} Bd7 {[%emt 0:02:17]} 12. Bh6 {[%emt 0:00:25]} Nb4 {[%emt 0:00:41]} 13. O-O-O {[%emt 0:00:27]} Nxa2+ {[%emt 0:00:15]} 14. Kb1 {[%emt 0:00:09]} Nxc3+ {[%emt 0:00:13]} 15. bxc3 {[%emt 0:00:02]} Nxe4 {[%emt 0:00:17]} 16. Qe3 {[%emt 0:00:01]} Nxc3+ {[%emt 0:00:20]} 17. Kc1 {[%emt 0:00:02]} Nxd1 {[%emt 0:00:36]} 18. Kxd1 {[%emt 0:00:01]} e4 {[%emt 0:00:20]} 19. Bxg7 {[%emt 0:00:07]} Kxg7 {[%emt 0:00:14]} 20. Ng5 {[%emt 0:00:02]} Qf6 {[%emt 0:00:21]} 21. h4 {[%emt 0:00:10]} Qa1+ {[%emt 0:00:35]} 22. Kd2 {[%emt 0:00:02]} Qb2+ {[%emt 0:00:03]} 23. Ke1 {[%emt 0:00:01]} Qb1+ {[%emt 0:00:07]} 24. Kd2 {[%emt 0:00:01]} Qb4+ {[%emt 0:00:34]} 25. Kc1 {[%emt 0:00:03]} f6 {[%emt 0:00:40]} 26. Qd4 {[%emt 0:00:08]} Qa3+ {[%emt 0:00:21]} 27. Kd2 {[%emt 0:00:02]} Qa2+ {[%emt 0:00:20]} 28. Ke1 {[%emt 0:00:03]} Qb1+ {[%emt 0:00:52]} 29. Kd2 {[%emt 0:00:01]} Ra6 {[%emt 0:00:35]} 30. h5 {[%emt 0:00:03]} Rb6 {[%emt 0:00:15]} 31. Ke3 {[%emt 0:00:27]} Qc1+ {[%emt 0:00:13]} 32. Kxe4 {[%emt 0:00:02]} Qxg5 0-1

[Event "ESP-ch Rapid 2018"]
[Site "Linares"]
[Date "2018.08.19"]
[Round "8"]
[White "Arjol Lopez, Daniel"]
[Black "Camacho Collados, Marcos"]
[Result "0-1"]
[ECO "A15"]
[WhiteElo "2137"]
[BlackElo "2393"]
[Annotator "NA"]
[PlyCount "142"]
[EventDate "2018.08.19"]
[EventType "team-tourn"]
[EventCountry "ESP"]
[SourceTitle "playchess.com"]
[Source "ChessBase"]
[SourceQuality "1"]
[TimeControl "900+5"]

1. c4 {[%emt 0:00:00]} Nf6 {[%emt 0:00:05]} 2. Nf3 {[%emt 0:00:00]} b6 {[%emt 0:00:04]} 3. g3 {[%emt 0:00:03]} Bb7 {[%emt 0:00:01]} 4. Bg2 {[%emt 0:00:01]} e6 {[%emt 0:00:01]} 5. O-O {[%emt 0:00:02]} Be7 {[%emt 0:00:01]} 6. b3 {[%emt 0:00:10]} O-O {[%emt 0:00:02]} 7. Bb2 {[%emt 0:00:01]} a5 {[%emt 0:00:02]} 8. Nc3 {[%emt 0:00:07]} d6 {[%emt 0:00:48]} 9. d4 {[%emt 0:00:05]} Ne4 {[%emt 0:00:04]} 10. Nd2 {[%emt 0:00:13]} Nxc3 11. Bxc3 {[%emt 0:00:01]} Bxg2 {[%emt 0:00:07]} 12. Kxg2 {[%emt 0:00:02]} Nd7 {[%emt 0:00:03]} 13. e4 {[%emt 0:00:02]} e5 {[%emt 0:00:17]} 14. d5 {[%emt 0:00:42]} Bg5 {[%emt 0:00:18]} 15. Nf3 {[%emt 0:00:07]} Bh6 {[%emt 0:00:03]} 16. Nh4 {[%emt 0:00:08]} g6 {[%emt 0:00:08]} 17. Qc2 {[%emt 0:01:53]} Nc5 {[%emt 0:00:11]} 18. a3 {[%emt 0:00:08]} a4 {[%emt 0:00:05]} 19. b4 {[%emt 0:00:01]} Nb3 {[%emt 0:00:01]} 20. Rad1 {[%emt 0:00:29]} Qd7 {[%emt 0:00:03]} 21. Kh1 {[%emt 0:03:18]} Rae8 {[%emt 0:00:22]} 22. Nf3 {[%emt 0:01:01]} Qg4 {[%emt 0:00:48]} 23. Nd2 {[%emt 0:01:51]} Nxd2 {[%emt 0:00:12]} 24. Bxd2 {[%emt 0:00:01]} Qf3+ {[%emt 0:00:03]} 25. Kg1 {[%emt 0:00:01]} Bxd2 {[%emt 0:00:02]} 26. Rxd2 {[%emt 0:00:02]} Qxa3 {[%emt 0:00:16]} 27. Rb1 {[%emt 0:00:23]} Qf3 {[%emt 0:00:02]} 28. Qxa4 {[%emt 0:01:31]} Qxe4 {[%emt 0:00:05]} 29. Rc1 {[%emt 0:00:01]} f5 {[%emt 0:01:06]} 30. Qd7 {[%emt 0:00:22]} Rc8 {[%emt 0:00:23]} 31. c5 {[%emt 0:00:14]} Qxb4 {[%emt 0:00:04]} 32. Rdc2 {[%emt 0:00:22]} bxc5 {[%emt 0:00:03]} 33. Rc4 {[%emt 0:00:06]} Qb3 {[%emt 0:00:11]} 34. Rh4 {[%emt 0:00:35]} h5 {[%emt 0:00:11]} 35. Qe6+ {[%emt 0:00:58]} Kg7 {[%emt 0:00:19]} 36. Rxh5 {[%emt 0:01:03]} gxh5 {[%emt 0:02:21]} 37. Qe7+ {[%emt 0:00:01]} Kg6 {[%emt 0:00:53]} 38. Qe6+ {[%emt 0:00:35]} Kg7 39. Qe7+ {[%emt 0:00:02]} Kg6 {[%emt 0:05:05]} 40. Qe6+ {[%emt 0:00:01]} Rf6 {[%emt 0:00:07]} 41. Qxc8 {[%emt 0:00:01]} Qxd5 {[%emt 0:00:02]} 42. Qxc7 {[%emt 0:00:01]} Rf7 {[%emt 0:00:07]} 43. Qd8 {[%emt 0:00:08]} Qe6 {[%emt 0:00:07]} 44. Qg8+ {[%emt 0:00:13]} Kh6 {[%emt 0:00:03]} 45. h4 {[%emt 0:00:08]} Qf6 {[%emt 0:00:23]} 46. Rd1 {[%emt 0:00:22]} Rf8 {[%emt 0:00:27]} 47. Qd5 {[%emt 0:00:34]} Rd8 {[%emt 0:00:01]} 48. Rb1 {[%emt 0:00:01]} f4 {[%emt 0:00:21]} 49. Rb7 {[%emt 0:00:29]} fxg3 {[%emt 0:00:04]} 50. fxg3 {[%emt 0:00:06]} Rf8 {[%emt 0:00:02]} 51. Qd2+ {[%emt 0:00:01]} Kg6 {[%emt 0:00:01]} 52. Qd3+ {[%emt 0:00:01]} Qf5 {[%emt 0:00:21]} 53. Qxd6+ {[%emt 0:00:11]} Rf6 {[%emt 0:00:01]} 54. Qd1 {[%emt 0:00:15]} Qf2+ {[%emt 0:00:52]} 55. Kh1 {[%emt 0:00:00]} e4 {[%emt 0:00:10]} 56. Rb3 {[%emt 0:00:12]} c4 {[%emt 0:00:51]} 57. Rb5 {[%emt 0:00:00]} Qf3+ {[%emt 0:00:30]} 58. Qxf3 {[%emt 0:00:02]} exf3 {[%emt 0:00:17]} 59. Kg1 {[%emt 0:00:06]} f2+ {[%emt 0:00:02]} 60. Kf1 {[%emt 0:00:02]} Rf3 {[%emt 0:00:06]} 61. Rg5+ {[%emt 0:00:05]} Kh6 {[%emt 0:00:00]} 62. Rc5 {[%emt 0:00:01]} c3 {[%emt 0:00:01]} 63. Rc6+ {[%emt 0:00:04]} Kg7 {[%emt 0:00:01]} 64. Rc5 {[%emt 0:00:00]} Kg6 {[%emt 0:00:04]} 65. Rg5+ {[%emt 0:00:02]} Kf6 {[%emt 0:00:18]} 66. Rxh5 Ke6 67. Rc5 {[%emt 0:00:25]} Kd6 {[%emt 0:00:01]} 68. Ra5 {[%emt 0:00:01]} c2 {[%emt 0:00:14]} 69. Ra1 {[%emt 0:00:01]} Rd3 {[%emt 0:00:09]} 70. Kxf2 {[%emt 0:00:29]} Rd1 {[%emt 0:00:01]} 71. Ra6+ {[%emt 0:00:01]} Ke5 0-1